bitfinex-derivatives/quotes_BTCF0:USTF0_20241122
["timestamp","ask_amount","ask_price","bid_price","bid_amount"]
[1732251347973,4e-05,98755.0,98754.0,0.3608]
[1732251348175,4e-05,98755.0,98754.0,0.411377]
[1732251348478,0.050617,98755.0,98754.0,0.411377]
[1732251348773,0.050577,98755.0,98754.0,0.411377]
[1732251348969,0.050577,98755.0,98754.0,0.3608]
[1732251352176,0.050579,98751.0,98750.0,0.04805085]
[1732251353578,0.050579,98751.0,98750.0,0.09862985]
[1732251354185,0.050579,98751.0,98750.0,0.45942985]
[1732251354890,0.050577,98755.0,98753.0,0.050578]
[1732251355087,0.050577,98754.0,98753.0,0.050578]
[1732251356984,0.53528285,98763.0,98750.0,0.40937085]
[1732251357190,0.050579,98752.0,98750.0,0.40885085]
[1732251357386,4e-05,98751.0,98750.0,0.45942985]
[1732251357784,0.050619,98751.0,98750.0,0.45942985]
[1732251359179,4e-05,98751.0,98750.0,0.45942985]
[1732251366184,0.050619,98751.0,98750.0,0.36231916]
[1732251367498,0.09848162,98751.0,98750.0,0.36231916]
[1732251367692,0.09848162,98751.0,98750.0,0.00151916]
[1732251373595,0.45928162,98751.0,98750.0,0.00151916]
[1732251377103,0.050581,98747.0,98746.0,0.050581]
[1732251377494,0.050621,98747.0,98746.0,0.050581]
[1732251378101,4e-05,98747.0,98746.0,0.050581]
[1732251378395,0.050621,98747.0,98746.0,0.050581]
[1732251379607,0.050621,98747.0,98740.0,0.4094573]
[1732251379608,4e-05,98747.0,98740.0,0.4094573]
[1732251379804,0.050584,98741.0,98740.0,0.4088573]
[1732251379997,0.050624,98741.0,98740.0,0.4088573]
[1732251380195,0.050624,98741.0,98740.0,0.4594413]
[1732251381006,0.050624,98741.0,98740.0,0.4088573]
[1732251381395,0.050624,98741.0,98740.0,0.4594413]
[1732251382707,0.050624,98741.0,98740.0,0.4088573]
[1732251383206,0.050624,98741.0,98732.0,0.0474]
[1732251383510,0.050628,98733.0,98732.0,0.0474]
[1732251383712,0.050628,98733.0,98732.0,0.09552235]
[1732251383918,0.050628,98733.0,98732.0,0.0474]
[1732251384103,0.050628,98733.0,98732.0,0.097988]
[1732251385720,0.050628,98733.0,98732.0,0.050588]
[1732251386525,0.05059,98730.0,98729.0,0.41139]
[1732251386826,0.05063,98730.0,98729.0,0.45889028]
[1732251388526,4e-05,98730.0,98729.0,0.45889028]
[1732251390228,0.0101,98740.0,98729.0,0.62357028]
[1732251390526,0.0101,98740.0,98730.0,0.0443]
[1732251390822,0.0101,98740.0,98730.0,0.17214923]
[1732251391018,0.0101,98740.0,98739.0,0.050585]
[1732251391214,0.0094,98753.0,98748.0,0.05058]
[1732251391413,0.0047,98759.0,98758.0,0.050575]
[1732251391622,0.04110972,98770.0,98769.0,0.05057]
[1732251392333,0.04110972,98770.0,98769.0,0.05061]
[1732251393424,0.09167872,98770.0,98769.0,4e-05]
[1732251393928,0.17797872,98770.0,98769.0,4e-05]
[1732251396327,0.03640972,98738.0,98721.0,0.3608]
[1732251396625,0.050589,98732.0,98728.0,0.12784923]
[1732251396832,0.050589,98732.0,98721.0,0.050594]
[1732251397025,0.050589,98732.0,98726.0,0.050591]
[1732251397231,0.050589,98732.0,98720.0,0.17791419]
[1732251397232,0.03640972,98729.0,98727.0,0.050591]
[1732251397529,0.03640972,98728.0,98722.0,0.050593]
[1732251397734,0.03640972,98723.0,98722.0,0.050593]
[1732251398032,0.03644972,98723.0,98722.0,0.050593]
[1732251399428,0.03644972,98723.0,98720.0,0.05006496]
[1732251399623,0.050594,98722.0,98721.0,0.050594]
[1732251400429,0.0453,98739.0,98720.0,0.05006496]
[1732251400628,0.3608,98721.0,98720.0,0.05006496]
[1732251400931,0.411394,98721.0,98720.0,0.05006496]
[1732251401231,0.44780372,98721.0,98720.0,0.05006496]
[1732251402223,0.44780372,98721.0,98720.0,0.00151905]
[1732251403035,0.0506,98709.0,98705.0,0.050602]
[1732251403253,0.3608,98708.0,98705.0,0.050602]
[1732251403533,4e-05,98706.0,98705.0,0.050602]
[1732251408433,0.3608,98711.0,98701.0,0.04727892]
[1732251408636,0.03640972,98710.0,98701.0,0.04727892]
[1732251408839,4e-05,98705.0,98704.0,0.096203]
[1732251412242,0.03644972,98705.0,98704.0,0.096203]
[1732251416048,0.03644972,98705.0,98704.0,0.050603]
[1732251416241,0.050604,98702.0,98701.0,0.09788192]
[1732251416442,4e-05,98705.0,98704.0,0.050603]
[1732251416642,0.050602,98705.0,98704.0,0.050603]
[1732251416953,0.08701172,98705.0,98704.0,0.050643]
[1732251417551,0.03640972,98705.0,98704.0,0.050643]
[1732251418448,0.08701172,98705.0,98704.0,0.050643]
[1732251420044,0.08701172,98705.0,98704.0,4e-05]
[1732251420355,0.03640972,98705.0,98704.0,0.050643]
[1732251421253,0.03640972,98705.0,98704.0,4e-05]
[1732251421551,0.08701172,98705.0,98704.0,4e-05]
[1732251423146,0.03640972,98705.0,98704.0,4e-05]
[1732251423346,0.03640972,98705.0,98704.0,0.050643]
[1732251423944,0.08656155,98705.0,98704.0,0.050643]
[1732251424150,0.03640972,98705.0,98704.0,0.050643]
[1732251425354,0.08701172,98705.0,98704.0,0.050643]
[1732251425554,0.1370118,98705.0,98704.0,4e-05]
[1732251429059,0.0864098,98705.0,98704.0,0.050643]
[1732251430058,0.1370118,98705.0,98704.0,0.050643]
[1732251431258,0.0864098,98705.0,98704.0,0.050643]
[1732251432057,0.1370118,98705.0,98704.0,0.050643]
[1732251433449,0.0864098,98705.0,98704.0,0.050643]
[1732251433650,0.0864098,98705.0,98704.0,4e-05]
[1732251433851,0.1370118,98705.0,98704.0,4e-05]
[1732251445366,1.6370118,98705.0,98704.0,4e-05]
[1732251446266,1.6370118,98705.0,98700.0,0.60052]
[1732251446567,0.08701372,98701.0,98700.0,0.6]
[1732251449986,0.354564,98701.0,98700.0,0.38864834]
[1732251450888,0.354564,98701.0,98696.0,0.0101]
[1732251450889,0.050606,98697.0,98696.0,0.0101]
[1732251451085,0.050606,98697.0,98672.0,0.050619]
[1732251451086,0.050608,98694.0,98687.0,0.0101]
[1732251451391,0.050608,98694.0,98680.0,0.0101]
[1732251451392,0.050612,98686.0,98680.0,0.0101]
[1732251451688,0.050618,98675.0,98674.0,0.0101]
[1732251451987,0.050619,98673.0,98672.0,0.050619]
[1732251452382,4e-05,98673.0,98672.0,0.050614]
[1732251457885,0.3655,98688.0,98687.0,0.050607]
[1732251458094,0.3608,98692.0,98676.0,0.0101]
[1732251458287,0.050606,98688.0,98687.0,4e-05]
[1732251459191,0.411406,98688.0,98687.0,4e-05]
[1732251461690,0.715406,98688.0,98687.0,4e-05]
[1732251462085,1.015406,98688.0,98674.0,0.0101]
[1732251462290,0.3608,98675.0,98620.0,0.12784923]
[1732251462496,0.3608,98643.0,98620.0,0.3]
[1732251462699,0.050626,98649.0,98630.0,0.12784923]
[1732251462992,0.050626,98649.0,98648.0,4e-05]
[1732251463199,0.3608,98652.0,98648.0,4e-05]
[1732251463795,0.41181415,98652.0,98648.0,4e-05]
[1732251464195,0.41181415,98652.0,98651.0,4e-05]
[1732251464395,0.0047,98662.0,98651.0,4e-05]
[1732251464598,0.0047,98668.0,98652.0,0.43192923]
[1732251464901,0.3608,98672.0,98667.0,4e-05]
[1732251465101,0.41050324,98672.0,98667.0,4e-05]
[1732251465303,0.41050324,98672.0,98671.0,4e-05]
[1732251465690,0.27670324,98672.0,98671.0,0.354695]
[1732251465895,0.227,98672.0,98671.0,0.354695]
[1732251467096,0.05042702,98675.0,98671.0,0.050655]
[1732251467402,0.0047,98684.0,98671.0,4e-05]
[1732251467607,0.050607,98686.0,98674.0,4e-05]
[1732251467801,0.0047,98692.0,98674.0,4e-05]
[1732251467997,0.050608,98684.0,98663.0,0.0844]
[1732251468201,0.3608,98675.0,98663.0,0.0844]
[1732251468406,4e-05,98664.0,98663.0,0.0844]
[1732251470109,4e-05,98664.0,98663.0,0.0405]
[1732251470297,4e-05,98664.0,98662.0,0.11628]
[1732251470699,4e-05,98663.0,98662.0,0.11628]
[1732251471798,4e-05,98663.0,98653.0,0.12784923]
[1732251472007,0.05062,98661.0,98653.0,0.12784923]
[1732251472208,4e-05,98654.0,98653.0,0.12784923]
[1732251472510,4e-05,98654.0,98651.0,0.00152052]
[1732251472805,4e-05,98652.0,98651.0,0.00152052]
[1732251475010,4e-05,98652.0,98651.0,0.30564052]
[1732251478313,0.0047,98667.0,98666.0,0.050617]
[1732251478502,0.0101,98670.0,98667.0,0.050617]
[1732251478702,0.04977262,98673.0,98666.0,4e-05]
[1732251478908,0.0444,98675.0,98667.0,0.050616]
[1732251479104,0.0444,98675.0,98672.0,4e-05]
[1732251479304,0.0444,98675.0,98673.0,4e-05]
[1732251479710,0.09050854,98674.0,98673.0,4e-05]
[1732251479906,0.0411,98674.0,98673.0,0.050654]
[1732251481512,0.0411,98674.0,98663.0,0.24412923]
[1732251482018,0.0411,98674.0,98671.0,0.050615]
[1732251482511,0.0444,98675.0,98663.0,0.24412923]
[1732251482711,0.0444,98675.0,98673.0,0.050613]
[1732251482905,0.0444,98675.0,98674.0,4e-05]
[1732251483305,0.04436,98675.0,98674.0,4e-05]
[1732251484406,0.0411,98686.0,98674.0,4e-05]
[1732251484613,0.0101,98692.0,98690.0,0.050605]
[1732251484918,0.04951726,98692.0,98691.0,0.050644]
[1732251485211,0.0404,98695.0,98691.0,0.050644]
[1732251485415,0.3608,98696.0,98692.0,0.050604]
[1732251485604,0.3608,98696.0,98693.0,4e-05]
[1732251486407,0.0389,98695.0,98693.0,4e-05]
[1732251486717,0.0389,98695.0,98693.0,0.050643]
[1732251487218,0.0389,98695.0,98694.0,4e-05]
[1732251497034,0.0389,98695.0,98694.0,0.11676]
[1732251497217,0.0389,98695.0,98694.0,0.21682636]
[1732251497821,0.00108001,98719.0,98695.0,0.30396]
[1732251498011,0.0094,98713.0,98709.0,0.050595]
[1732251498215,0.0385,98718.0,98709.0,0.167315]
[1732251498527,0.0385,98718.0,98709.0,0.167355]
[1732251498720,0.0385,98718.0,98709.0,0.11676]
[1732251498721,0.05010068,98710.0,98709.0,0.11676]
[1732251499021,0.050593,98715.0,98712.0,0.050594]
[1732251499219,0.3608,98713.0,98712.0,0.050594]
[1732251499421,0.050592,98715.0,98714.0,4e-05]
[1732251505032,0.0385,98718.0,98714.0,4e-05]
[1732251505425,0.050592,98716.0,98714.0,4e-05]
[1732251506230,0.0385,98718.0,98703.0,0.050598]
[1732251506533,0.3608,98706.0,98703.0,0.050598]
[1732251506726,4e-05,98704.0,98703.0,0.050598]
[1732251507537,4e-05,98704.0,98700.0,0.17783817]
[1732251507730,0.050599,98703.0,98701.0,0.11672]
[1732251509533,0.038,98705.0,98694.0,0.41066773]
[1732251509733,0.3608,98697.0,98696.0,0.167322]
[1732251510324,0.3608,98697.0,98694.0,0.07054773]
[1732251510536,0.3608,98697.0,98690.0,0.12784923]
[1732251510834,0.050606,98688.0,98684.0,0.0015197]
[1732251511029,0.3608,98685.0,98684.0,0.0015197]
[1732251511234,0.36084,98685.0,98684.0,0.0015197]
[1732251511432,0.36084,98685.0,98684.0,0.05272513]
[1732251511637,0.36084,98685.0,98684.0,0.0015197]
[1732251512045,0.39874,98685.0,98684.0,0.0015197]
[1732251515735,4e-05,98685.0,98684.0,0.0015197]
[1732251516336,4e-05,98685.0,98684.0,0.0521277]
[1732251517646,0.3608,98693.0,98684.0,0.0521277]
[1732251517647,0.3608,98693.0,98692.0,0.050604]
[1732251518136,4e-05,98695.0,98694.0,0.050603]
[1732251518441,0.0094,98708.0,98699.0,0.0506]
[1732251518633,0.04,98709.0,98699.0,0.0506]
[1732251518833,0.04,98709.0,98699.0,0.05068]
[1732251520535,0.050596,98708.0,98699.0,0.05068]
[1732251521338,0.04,98709.0,98699.0,0.05068]
[1732251521638,0.0897,98700.0,98699.0,8e-05]
[1732251525145,0.0391,98700.0,98699.0,0.05068]
[1732251527132,0.05156569,98707.0,98699.0,8e-05]
[1732251527333,0.0399,98712.0,98706.0,0.050597]
[1732251527546,0.0399,98712.0,98707.0,0.050596]
[1732251527547,0.050594,98711.0,98707.0,0.050596]
[1732251527935,0.050595,98710.0,98707.0,0.050596]
[1732251528131,0.0399,98712.0,98704.0,0.3608]
[1732251528339,0.0399,98712.0,98708.0,0.050595]
[1732251528742,0.0399,98712.0,98703.0,0.050598]
[1732251529047,0.4007,98712.0,98703.0,0.050598]
[1732251529551,0.4007,98712.0,98697.0,0.12784923]
[1732251529552,0.050596,98708.0,98705.0,0.050597]
[1732251530639,0.050596,98708.0,98706.0,0.050597]
[1732251530834,0.4007,98712.0,98697.0,0.12784923]
[1732251531346,0.4007,98712.0,98711.0,0.050674]
[1732251531843,0.0375,98723.0,98720.0,0.050589]
[1732251532049,0.0375,98723.0,98721.0,0.050589]
[1732251532345,0.0375,98723.0,98722.0,0.050669]
[1732251533836,0.08921916,98723.0,98722.0,0.050669]
[1732251535042,0.13980716,98723.0,98722.0,8e-05]
[1732251536147,0.13980716,98723.0,98722.0,0.050669]
[1732251538459,0.13980716,98723.0,98722.0,8e-05]
[1732251541555,0.13980716,98723.0,98722.0,0.050669]
[1732251542066,0.05171916,98723.0,98722.0,0.050669]
[1732251542259,0.050587,98725.0,98722.0,8e-05]
[1732251542554,0.050587,98725.0,98724.0,0.050668]
[1732251544049,0.08618381,98726.0,98725.0,0.050587]
[1732251544448,0.08618381,98726.0,98725.0,0.050667]
[1732251544851,0.0367,98726.0,98725.0,0.050667]
[1732251546551,0.0517747,98733.0,98732.0,0.050583]
[1732251546966,0.0094,98744.0,98743.0,0.050578]
[1732251547159,0.038,98745.0,98744.0,0.050577]
[1732251548053,0.038,98745.0,98744.0,0.050657]
[1732251550755,0.038,98745.0,98744.0,8e-05]
[1732251550756,0.088577,98745.0,98744.0,8e-05]
[1732251551267,0.088577,98745.0,98744.0,0.050657]
[1732251552056,0.038,98745.0,98744.0,0.050657]
[1732251552258,0.038,98745.0,98744.0,8e-05]
[1732251552659,0.088577,98745.0,98744.0,8e-05]
[1732251552850,0.449377,98745.0,98744.0,8e-05]
[1732251553251,0.088577,98745.0,98744.0,8e-05]
[1732251554763,0.038,98745.0,98744.0,0.36088]
[1732251554962,0.0094,98760.0,98759.0,0.05057]
[1732251555266,0.050567,98765.0,98760.0,0.050569]
[1732251555561,0.050567,98765.0,98764.0,8e-05]
[1732251559665,0.10019009,98765.0,98764.0,8e-05]
[1732251559972,0.10019009,98765.0,98764.0,0.050647]
[1732251560762,0.10019009,98765.0,98764.0,8e-05]
[1732251564362,0.46099009,98765.0,98764.0,8e-05]
[1732251564570,0.76475009,98765.0,98764.0,8e-05]
[1732251564780,0.76475009,98765.0,98758.0,0.0024]
[1732251564781,0.05057,98759.0,98758.0,0.0024]
[1732251565578,0.05058,98738.0,98737.0,0.10671965]
[1732251566072,0.050582,98737.0,98736.0,0.050581]
[1732251566261,0.050582,98734.0,98733.0,0.411382]
[1732251573877,0.050582,98734.0,98733.0,0.3608]
[1732251576678,4e-05,98737.0,98736.0,0.050581]
[1732251577072,4e-05,98737.0,98736.0,0.050621]
[1732251578581,0.0364,98759.0,98752.0,0.050573]
[1732251578873,0.0364,98759.0,98752.0,0.36084]
[1732251579083,0.08732749,98759.0,98752.0,0.36084]
[1732251579292,0.13789749,98759.0,98758.0,4e-05]
[1732251584988,0.08732749,98759.0,98758.0,0.05061]
[1732251585389,0.13789749,98759.0,98758.0,0.05061]
[1732251589696,0.08732749,98759.0,98758.0,0.05061]
[1732251592404,0.050565,98769.0,98759.0,0.05057]
[1732251592598,0.088465,98769.0,98759.0,0.17841923]
[1732251592792,0.088465,98769.0,98768.0,0.050605]
[1732251595405,0.0379,98769.0,98768.0,0.050605]
[1732251596112,0.0101,98776.0,98775.0,0.050561]
[1732251596408,0.038,98777.0,98776.0,0.050561]
[1732251596798,0.08856,98777.0,98776.0,4e-05]
[1732251599301,0.44936,98777.0,98776.0,4e-05]
[1732251600011,0.08856,98777.0,98776.0,4e-05]
[1732251600400,0.44936,98777.0,98776.0,4e-05]
[1732251600814,0.08856,98777.0,98776.0,4e-05]
[1732251601408,0.75308,98777.0,98776.0,4e-05]
[1732251607216,0.44936,98777.0,98776.0,4e-05]
[1732251612309,0.44936,98777.0,98758.0,0.0024]
[1732251612310,0.70252,98777.0,98758.0,0.0024]
[1732251612516,0.050573,98753.0,98752.0,0.00052]
[1732251612820,0.050573,98754.0,98741.0,0.40140878]
[1732251613020,0.050573,98754.0,98753.0,0.05057]
[1732251613211,0.050573,98754.0,98753.0,4e-05]
[1732251621420,0.354373,98754.0,98753.0,4e-05]
[1732251624623,0.354373,98754.0,98736.0,0.0024]
[1732251624819,0.050583,98732.0,98728.0,0.0024]
[1732251625024,0.050589,98722.0,98721.0,0.050589]
[1732251625417,0.050629,98722.0,98721.0,0.050589]
[1732251625625,0.050629,98722.0,98715.0,0.10956]
[1732251625626,0.050591,98717.0,98715.0,0.050592]
[1732251625922,0.050631,98717.0,98715.0,0.10674526]
[1732251628832,0.050631,98717.0,98716.0,0.0521112]
[1732251633537,0.050631,98717.0,98716.0,0.0015192]
[1732251634325,0.050631,98717.0,98716.0,0.0521112]
[1732251634724,4e-05,98717.0,98716.0,0.0521112]
[1732251635132,4e-05,98717.0,98716.0,0.0884112]
[1732251635341,4e-05,98722.0,98716.0,0.3923312]
[1732251635529,4e-05,98722.0,98721.0,0.050589]
[1732251635730,0.0125,98736.0,98721.0,0.411429]
[1732251635936,0.0101,98743.0,98733.0,0.3608]
[1732251636224,0.0101,98743.0,98742.0,0.050618]
[1732251637331,0.0047,98744.0,98743.0,0.050578]
[1732251637537,0.411372,98756.0,98755.0,0.050572]
[1732251637938,0.411372,98756.0,98755.0,0.050612]
[1732251638139,0.411372,98756.0,98755.0,4e-05]
[1732251640235,0.715172,98756.0,98755.0,4e-05]
[1732251640540,0.050577,98744.0,98743.0,4e-05]
[1732251640943,0.050617,98744.0,98743.0,4e-05]
[1732251641630,0.354417,98744.0,98743.0,4e-05]
[1732251642542,0.654417,98744.0,98743.0,4e-05]
[1732251643133,2.515217,98744.0,98743.0,4e-05]
[1732251643338,2.55549205,98744.0,98743.0,4e-05]
[1732251645140,2.66485205,98744.0,98743.0,4e-05]
[1732251645958,2.36485205,98744.0,98743.0,4e-05]
[1732251646332,2.25549205,98744.0,98743.0,4e-05]
[1732251646538,2.36485205,98744.0,98743.0,4e-05]
[1732251648255,2.06105205,98744.0,98743.0,4e-05]
[1732251649747,1.95169205,98744.0,98743.0,4e-05]
[1732251649948,1.97192197,98744.0,98743.0,4e-05]
[1732251650744,2.27572197,98744.0,98743.0,4e-05]
[1732251651647,2.38508197,98744.0,98743.0,4e-05]
[1732251652145,2.27572197,98744.0,98743.0,4e-05]
[1732251657852,0.050585,98729.0,98728.0,0.0047]
[1732251658057,0.050588,98723.0,98722.0,0.0101]
[1732251658252,0.050591,98717.0,98716.0,0.0015192]
[1732251658752,0.050631,98717.0,98716.0,0.0015192]
[1732251659959,0.050631,98717.0,98716.0,0.0521112]
[1732251660258,0.050631,98717.0,98716.0,0.0015192]
[1732251661159,0.09196107,98717.0,98716.0,0.0015192]
[1732251664757,0.050598,98707.0,98706.0,0.050597]
[1732251665154,0.050638,98707.0,98706.0,0.050597]
[1732251667058,0.050598,98703.0,98702.0,0.3608]
[1732251667959,0.050638,98703.0,98702.0,0.3608]
[1732251669365,0.050638,98703.0,98694.0,0.411403]
[1732251669366,0.050602,98695.0,98694.0,0.411403]
[1732251669768,0.050642,98695.0,98694.0,0.411403]
[1732251670075,0.050642,98695.0,98694.0,0.3608]
[1732251671171,0.050607,98687.0,98684.0,0.0101]
[1732251671362,0.050607,98687.0,98677.0,0.050612]
[1732251671566,0.050647,98687.0,98677.0,0.050612]
[1732251671970,0.050647,98687.0,98674.0,0.0771]
[1732251672673,0.050647,98687.0,98679.0,0.05061]
[1732251672971,4e-05,98687.0,98685.0,0.050607]
[1732251673171,0.050647,98687.0,98685.0,0.050607]
[1732251675171,4e-05,98687.0,98685.0,0.050607]
[1732251675778,4e-05,98687.0,98679.0,0.05061]
[1732251676073,4e-05,98687.0,98675.0,0.050613]
[1732251676074,0.36084,98687.0,98675.0,0.050613]
[1732251676275,0.39894,98687.0,98675.0,0.050613]
[1732251676870,0.39894,98687.0,98672.0,0.3709]
[1732251677174,0.050614,98673.0,98672.0,0.0101]
[1732251677365,0.050614,98673.0,98652.0,0.46992]
[1732251677366,0.3608,98673.0,98658.0,0.43724316]
[1732251677567,0.3608,98661.0,98655.0,0.050623]
[1732251677873,0.36084,98673.0,98652.0,0.01218034]
[1732251677874,4e-05,98656.0,98652.0,0.00152034]
[1732251678170,0.3608,98659.0,98652.0,0.00152034]
[1732251678171,0.3608,98659.0,98655.0,0.050623]
[1732251678376,0.3608,98659.0,98652.0,0.00152034]
[1732251678577,0.3608,98659.0,98658.0,4e-05]
[1732251680073,0.411421,98659.0,98658.0,4e-05]
[1732251680575,0.050621,98659.0,98658.0,4e-05]
[1732251681178,0.411421,98659.0,98658.0,4e-05]
[1732251685469,0.3608,98659.0,98658.0,0.050661]
[1732251685666,0.09173581,98661.0,98659.0,0.050621]
[1732251685871,0.09173581,98661.0,98658.0,4e-05]
[1732251685872,0.05062,98661.0,98660.0,0.05062]
[1732251686074,0.41142,98661.0,98660.0,0.05066]
[1732251686378,1.64966,98669.0,98660.0,4e-05]
[1732251686379,1.54158001,98669.0,98660.0,4e-05]
[1732251686570,0.0405,98669.0,98660.0,4e-05]
[1732251687069,0.3608,98664.0,98661.0,0.05062]
[1732251687269,0.3608,98664.0,98663.0,0.050619]
[1732251689282,0.411418,98664.0,98663.0,0.050619]
[1732251689666,0.411418,98664.0,98660.0,0.05062]
[1732251689667,0.05062,98661.0,98660.0,0.05062]
[1732251690076,0.05066,98661.0,98660.0,0.05062]
[1732251690377,0.050621,98660.0,98656.0,0.050622]
[1732251690575,0.050621,98659.0,98657.0,0.050622]
[1732251691878,0.3608,98664.0,98651.0,0.3608]
[1732251691879,0.050622,98657.0,98651.0,0.3608]
[1732251692079,0.3608,98656.0,98652.0,0.050624]
[1732251692286,0.050624,98653.0,98652.0,0.050624]
[1732251694286,0.09064071,98653.0,98652.0,0.050624]
[1732251695876,0.050624,98653.0,98652.0,0.050624]
[1732251696270,0.3608,98656.0,98655.0,0.050623]
[1732251696271,0.40133488,98656.0,98655.0,0.050623]
[1732251696475,0.04053488,98656.0,98655.0,0.050623]
[1732251696778,0.45273824,98664.0,98662.0,0.050619]
[1732251697184,0.45273824,98664.0,98663.0,4e-05]
[1732251703788,0.45273824,98664.0,98663.0,0.050659]
[1732251703976,0.09193824,98664.0,98663.0,0.050659]
[1732251704983,0.09193824,98664.0,98650.0,0.12789894]
[1732251704984,0.050626,98650.0,98649.0,0.3608]
[1732251705287,0.050626,98650.0,98643.0,0.050629]
[1732251705288,0.050629,98644.0,98643.0,0.050629]
[1732251705698,0.050631,98640.0,98639.0,0.05215157]
[1732251705989,0.05071101,98640.0,98639.0,0.05215157]
[1732251707179,0.05071101,98640.0,98639.0,0.00152057]
[1732251709384,8.001e-05,98640.0,98628.0,0.0101]
[1732251709689,0.050638,98628.0,98627.0,0.050637]
[1732251709889,0.411438,98628.0,98627.0,0.050637]
[1732251710183,0.05064,98622.0,98621.0,0.050639]
[1732251710392,0.0363,98627.0,98614.0,0.00152108]
[1732251710589,8.001e-05,98622.0,98619.0,0.050641]
[1732251710782,0.124337,98627.0,98626.0,4e-05]
[1732251710989,0.124337,98627.0,98611.0,0.0101]
[1732251710990,0.050644,98615.0,98611.0,0.0101]
[1732251711202,0.3608,98612.0,98600.0,0.4614]
[1732251711387,0.12789894,98610.0,98600.0,0.4608]
[1732251711697,0.050649,98604.0,98603.0,0.05065]
[1732251712189,0.050646,98611.0,98608.0,0.050647]
[1732251712395,0.050648,98607.0,98606.0,0.050648]
[1732251713499,0.3608,98612.0,98600.0,0.46132]
[1732251713689,0.0363,98606.0,98605.0,0.050649]
[1732251715597,0.03626,98606.0,98605.0,0.050649]
[1732251718596,0.07376,98606.0,98600.0,0.10052]
[1732251718795,0.411451,98601.0,98600.0,0.1]
[1732251718995,0.520331,98601.0,98600.0,0.1]
[1732251719197,0.824571,98601.0,98600.0,0.1]
[1732251720198,0.050656,98591.0,98585.0,0.0101]
[1732251720404,1.96968,98601.0,98583.0,0.05066]
[1732251720596,0.00012,98586.0,98583.0,0.05066]
[1732251721403,0.36188001,98601.0,98600.0,0.050651]
[1732251721605,0.3608,98608.0,98607.0,0.050648]
[1732251722095,0.3608,98620.0,98600.0,0.0397]
[1732251722293,0.3608,98620.0,98618.0,0.050642]
[1732251722487,0.3608,98620.0,98619.0,4e-05]
[1732251722688,0.03966358,98624.0,98623.0,0.050639]
[1732251722888,0.3608,98630.0,98628.0,0.050636]
[1732251723104,0.050637,98629.0,98623.0,4e-05]
[1732251723395,0.3608,98631.0,98620.0,0.12789894]
[1732251723802,0.3608,98631.0,98622.0,0.05064]
[1732251723994,0.3608,98631.0,98623.0,0.050639]
[1732251724302,0.050636,98630.0,98620.0,0.12789894]
[1732251724498,0.050636,98630.0,98628.0,0.050637]
[1732251724702,0.3608,98631.0,98630.0,0.050636]
[1732251724997,0.3608,98631.0,98630.0,0.050676]
[1732251726899,0.04038165,98633.0,98630.0,4e-05]
[1732251727097,0.0047,98648.0,98647.0,0.050627]
[1732251727294,0.3608,98653.0,98636.0,0.12789894]
[1732251727592,4e-05,98637.0,98636.0,0.12789894]
[1732251727796,4e-05,98637.0,98636.0,0.050633]
[1732251730002,0.050672,98637.0,98631.0,0.050635]
[1732251730307,0.3608,98640.0,98628.0,0.037]
[1732251730496,0.0047,98649.0,98628.0,0.037]
[1732251730802,0.0047,98655.0,98639.0,0.12793894]
[1732251731105,0.3608,98640.0,98639.0,4e-05]
[1732251733506,0.4358,98640.0,98639.0,4e-05]
[1732251734110,0.73992,98640.0,98639.0,4e-05]
[1732251736503,0.050638,98625.0,98624.0,0.0101]
[1732251736714,0.050641,98620.0,98617.0,0.050642]
[1732251736912,0.0374,98624.0,98617.0,0.050642]
[1732251737212,0.0374,98624.0,98623.0,4e-05]
[1732251738408,0.07699081,98624.0,98623.0,4e-05]
[1732251738615,0.14596,98624.0,98623.0,4e-05]
[1732251739111,0.18572497,98624.0,98623.0,4e-05]
[1732251739510,0.48992497,98624.0,98623.0,4e-05]
[1732251739700,0.18572497,98624.0,98623.0,4e-05]
[1732251740100,0.07716497,98624.0,98623.0,4e-05]
[1732251740407,0.0374,98624.0,98623.0,4e-05]
[1732251743111,0.03676922,98624.0,98623.0,4e-05]
[1732251743720,0.00112002,98625.0,98624.0,0.3042]
[1732251743904,0.050635,98631.0,98629.0,0.050636]
[1732251744420,0.3608,98632.0,98631.0,0.050635]
[1732251745319,0.3608,98632.0,98631.0,0.050675]
[1732251745712,0.3998,98632.0,98631.0,0.050675]
[1732251747112,1.8998,98632.0,98631.0,0.050675]
[1732251748429,1.950435,98632.0,98631.0,0.050675]
[1732251754426,1.950435,98632.0,98631.0,4e-05]
[1732251759526,1.950435,98632.0,98631.0,0.050675]
[1732251759727,0.450435,98632.0,98631.0,0.050675]
[1732251760626,0.089635,98632.0,98631.0,4e-05]
[1732251761324,0.450435,98632.0,98631.0,4e-05]
[1732251761719,0.450435,98632.0,98631.0,0.050675]
[1732251762028,0.089635,98632.0,98631.0,0.050675]
[1732251762932,0.089635,98632.0,98631.0,4e-05]
[1732251763714,0.450435,98632.0,98631.0,4e-05]
[1732251763917,0.089635,98632.0,98631.0,4e-05]
[1732251764126,0.450435,98632.0,98631.0,4e-05]
[1732251764522,0.089635,98632.0,98631.0,0.050675]
[1732251764728,0.089635,98632.0,98631.0,4e-05]
[1732251765326,0.0396,98639.0,98631.0,4e-05]
[1732251765826,0.0396,98639.0,98638.0,4e-05]
[1732251766031,0.090231,98639.0,98638.0,4e-05]
[1732251766624,0.050638,98626.0,98624.0,0.0024]
[1732251766826,0.3608,98632.0,98611.0,0.0024]
[1732251767031,0.050679,98625.0,98611.0,0.050645]
[1732251767229,0.05064,98623.0,98621.0,0.05064]
[1732251767532,0.05064,98622.0,98619.0,0.3608]
[1732251767928,4e-05,98620.0,98619.0,0.411441]